Cogmind - Beta 17 @@@ ROGUE MODE // 2026.07.11 @ 19:43:31 Player: mischief_2000 Result: Destroyed by QW-PGQ(R) with Subdweller Machine Gun Performance ------------- Evolutions (0) 0 Regions Visited (2) 400 Robots Destroyed (30) 150 Value Destroyed (384) 384 Prototype IDs (2) 40 Alien Tech Used (0) 0 Bonus (0) 0 TOTAL SCORE: 974 Bonus ------- None Cogmind --------- Core Integrity 0/250 Matter 128/300 Energy 16/100 System Corruption 0% Temperature Cool (0) Movement Treading (480) Ox4 Location -10/Subcaves Parts ------- > --- POWER (1) -------- (None) > --- PROPULSION (2) --- Light Treads > --- UTILITY (2) ------ Huge Storage Unit > --- WEAPON (2) ------- Spread Laser Light Cannon > --- INVENTORY (25) --- Light Treads Light Treads Light Treads Aluminum Leg Aluminum Leg Compact Wheel Compact Wheel Compact Wheel Large Storage Unit Large Matter Pod (0) Large Matter Pod (0) Spread Laser Spread Laser Spread Laser Light EM Pulse Cannon Light EM Pulse Cannon Light EM Pulse Cannon Light EM Pulse Cannon Shotgun Shotgun Shotgun Shotgun Mining Laser Peak State ------------ > --- POWER ------------ Ion Engine > --- PROPULSION ------- Light Treads Compact Wheel > --- UTILITY ---------- Huge Storage Unit Seismic Detector > --- WEAPON ----------- Spread Laser Spread Laser > --- INVENTORY -------- Light Treads Light Treads Light Treads Light Treads Aluminum Leg Aluminum Leg Compact Wheel Compact Wheel Compact Wheel Large Storage Unit Large Matter Pod Large Matter Pod Spread Laser Spread Laser Light EM Pulse Cannon Light EM Pulse Cannon Light EM Pulse Cannon Light EM Pulse Cannon Shotgun Shotgun Shotgun Shotgun Light Cannon Mining Laser [Rating: 12] Favorites ----------- Power Light Ion Engine Engine Light Ion Engine Propulsion Light Treads Treads Light Treads Leg Aluminum Leg Wheel Compact Wheel Utility Seismic Detector Device Seismic Detector Storage Huge Storage Unit Weapon Spread Laser Energy Gun Spread Laser Ballistic Gun Light Assault Rifle Ballistic Cannon Light Cannon Special Weapon Mining Laser Build | -11 -10 -10 ------- Run | Yrd Mat Sub Slots Evolved . | . . . Power . | . . . Propulsion . | . . . Utility . | . . . Weapon . | . . . Parts Attached 22 | 7 11 4 Power 2 | 1 1 . Engine 2 | 1 1 . Core . | . . . Reactor . | . . . Propulsion 7 | 2 3 2 Treads 4 | . 2 2 Leg 2 | 2 . . Wheel 1 | . 1 . Hover . | . . . Flight . | . . . Utility 5 | 2 3 . Device 2 | 1 1 . Storage 3 | 1 2 . Processor . | . . . Hackware . | . . . Protection . | . . . Artifact . | . . . Weapon 8 | 2 4 2 Energy Gun 4 | . 3 1 Energy Cannon . | . . . Ballistic Gun 2 | 2 . . Ballistic Cannon 1 | . . 1 Launcher . | . . . Special Weapon 1 | . 1 . Impact Weapon . | . . . Slashing Weapon . | . . . Piercing Weapon . | . . . Special Melee Weapon . | . . . Unidentified Prototypes . | . . . Parts Lost 7 | . 2 5 Power 2 | . 1 1 Propulsion 3 | . . 3 Utility 2 | . 1 1 Weapon . | . . . Highest Loss Streak 5 | . 1 5 To Critical Strikes . | . . . Average Backups 17 | 6 15 24 Power . | . . . Propulsion 7 | 3 6 9 Utility 2 | . 2 3 Weapon 7 | 1 5 12 Tool/Special . | . . . Unused Backups 19 | . 3 16 Power . | . . . Propulsion 5 | . . 5 Utility 3 | . 1 2 Weapon 11 | . 2 9 Tool/Special . | . . . Average Slot Usage (%) 97 | . 96 97 Engine 12 | . 11 13 Treads 16 | . 17 14 Leg 3 | . 5 . Wheel 8 | . 5 12 Device 13 | . 13 12 Storage 14 | . 14 14 Energy Gun 15 | . 8 24 Ballistic Gun 8 | . 14 . Ballistic Cannon 1 | . . 3 Special Weapon 2 | . 4 . Peak Build Rating 12 | 7 12 12 Average Rating 9 | 5 8 11 On Entrance 6 | . 7 11 Avg Prop Armor Cover (%) 13 | . 14 13 Naked Turns . | . . . Heaviest Build 92 | 11 92 92 Greatest Support 40 | 20 40 16 Greatest Overweight (x) 5 | 1 5 5 Average Overweight (x) 2 | . 1 5 Largest Inventory Capacity 25 | 8 25 25 Average Capacity 18 | 7 17 25 Most Carried 25 | 7 25 25 Average Carried 17 | 6 16 24 Final Capacity 25 | 8 25 25 Final Carried 24 | 7 24 23 Class Distribution -------------------- 100% | Mutant Dominant Class ---------------- Mutant | -10/Materials Mutant | -10/Subcaves Resources | -11 -10 -10 ----------- Run | Yrd Mat Sub Matter Collected 373 | 142 180 51 Remotely . | . . . Salvage Created 681 | 280 331 70 Parts 64 | 29 25 10 Haulers Intercepted 1 | . 1 . Recyclers Shooed 1 | 1 . . Parts Field Recycled . | . . . Retrieved Matter . | . . . Parts Self-Destructed 13 | . . 13 Prevented . | . . . Parts Restored . | . . . Kills | -11 -10 -10 ------- Run | Yrd Mat Sub Combat Hostiles Destroyed 14 | . 10 4 Guns 14 | . 10 4 Classes Destroyed 9 | 3 5 1 Worker 2 | 2 . . Builder 1 | . 1 . Tunneler 9 | 9 . . Hauler 1 | . 1 . Recycler 2 | 1 1 . Watcher 1 | . 1 . Swarmer 9 | . 6 3 Grunt 4 | . 4 . Sentry 1 | . . 1 Best Kill Streak 4 | 4 3 3 Combat Bots Only 3 | . 3 3 Max Kills in Single Turn 1 | 1 1 1 Gunslinging . | . . . Exploded . | . . . Melee . | . . . Uniques/NPCs Destroyed . | . . . Combat | -11 -10 -10 -------- Run | Yrd Mat Sub Hostile Shots Fired 93 | . 43 50 Missed 20 | . 14 6 Hits 73 | . 29 44 Projectile 73 | . 29 44 Damage Taken 1081 | . 296 785 Core 250 | . 27 223 Absorbed by Shields . | . . . Core Remaining (%) 100 | 100 . . Volleys Fired 113 | 39 44 30 Largest 2 | 2 2 2 Hottest 130 | 40 130 130 Shots Fired 211 | 78 76 57 Gun 196 | 78 64 54 Cannon 3 | . . 3 Launcher . | . . . Special 12 | . 12 . Kinetic 111 | 78 30 3 Thermal 100 | . 46 54 Explosive . | . . . Electromagnetic . | . . . Robot Hit Streak 13 | 10 7 13 Robot Miss Streak 5 | 5 5 4 Penetration Max . | . . . Secondary Targets 2 | . 2 . Max Gunslinging Chain 1 | . 1 . Shots Hit Robots 148 | 51 45 52 Core Hits 75 | 23 41 11 Critical Kills . | . . . Critical Parts Destroyed . | . . . Critical Strikes . | . . . Melee Attacks . | . . . Impact . | . . . Slashing . | . . . Piercing . | . . . Sneak Attacks . | . . . Combat Hostiles . | . . . Follow-up Attacks . | . . . Damage Inflicted 951 | 385 466 100 Guns 927 | 385 442 100 Cannons . | . . . Explosions . | . . . Melee . | . . . Ramming . | . . . Kinetic 535 | 385 150 . Thermal 416 | . 316 100 Explosive . | . . . Electromagnetic . | . . . Impact . | . . . Slashing . | . . . Piercing . | . . . Highest Corruption . | . . . Average Corruption . | . . . Corruption Purged . | . . . Corruption Blocked . | . . . Overload Shots . | . . . Overflow Damage . | . . . Projectiles . | . . . Explosions . | . . . Melee . | . . . Knockbacks . | . . . Impact . | . . . Kinetic . | . . . Secondary . | . . . Self-Inflicted Damage . | . . . Shots . | . . . Rammed . | . . . Targets Rammed . | . . . Kicked . | . . . Crushed . | . . . Highest Temperature 162 | . 162 108 Average Temperature 42 | . 38 49 Received Heat Transfer 93 | . 84 9 Siege Activations . | . . . Martial Activations . | . . . Shielding Activations . | . . . Robots Disrupted . | . . . Combat Hostiles . | . . . Robots Corrupted . | . . . Combat Hostiles . | . . . Parts Fried . | . . . Impact Corruptions . | . . . Robots Melted . | . . . Combat Hostiles . | . . . Parts Melted . | . . . Heat Transferred 574 | . 449 125 Parts Sabotaged . | . . . Parts Stolen . | . . . Parts Stripped . | . . . Power Chain Reactions . | . . . Alert | -11 -10 -10 ------- Run | Yrd Mat Sub Maximum Alert Level . | . . . Low Security (%) 100 | 100 100 . Level 1 . | . . . Level 2 . | . . . Level 3 . | . . . Level 4 . | . . . Level 5 . | . . . High Security . | . . . Max Security . | . . . Peak Influence 132 | 10 132 . Initial . | . . . Average 24 | 1 31 . Influence Increases 456 | 60 306 90 Destroy 0b10 Robot/C 280 | . 200 80 Destroy 0b10 Robot/NC 80 | 60 20 . Destroy Leader 54 | . 44 10 Successful Hack 33 | . 33 . Destroy Structure 9 | . 9 . Influence Decreases 456 | 60 227 169 Entered New Map 39 | . . 39 Time Decay 397 | 60 207 130 Lost Part 20 | . 20 . Squads Dispatched 1 | . 1 . Investigation . | . . . Extermination . | . . . Reinforcement 1 | . 1 . Assault . | . . . Garrison . | . . . Intercept . | . . . Searches Triggered . | . . . Construction Impeded . | . . . Haulers Reinforced . | . . . Active Scanning Responses . | . . . Cargo Convoy Interrupts . | . . . Stealth | -11 -10 -10 --------- Run | Yrd Mat Sub Distress Signals 2 | . 2 . Communications Jammed . | . . . Distress Signals . | . . . Times Spotted 21 | . 16 5 Peak Tracking Total 4 | . 4 3 Tactical Retreats . | . . . Traps | -11 -10 -10 ------- Run | Yrd Mat Sub Traps Triggered . | . . . Indirectly . | . . . Trap Hack Attempts . | . . . Triggered . | . . . Disarmed . | . . . Reprogrammed . | . . . Reused . | . . . Traps Extracted . | . . . Installed . | . . . Triggered . | . . . Machines | -11 -10 -10 ---------- Run | Yrd Mat Sub Machines Disabled . | . . . Max in Single Turn . | . . . Machines Repaired . | . . . Machines Dismantled . | . . . Machines Sabotaged . | . . . Overloaded Fab Kills . | . . . Hacking | -11 -10 -10 --------- Run | Yrd Mat Sub Machines Accessed 6 | . 6 . Terminals 5 | . 5 . Fabricators . | . . . Repair Stations 1 | . 1 . Recycling Units . | . . . Scanalyzers . | . . . Garrison Access . | . . . Total Hacks 26 | . 26 . Successful 13 | . 13 . Failed 12 | . 12 . Catastrophic 1 | . 1 . Database Lockouts 1 | . 1 . Manual 22 | . 22 . Terminals 25 | . 25 . Fabricators . | . . . Repair Stations 1 | . 1 . Recycling Units . | . . . Scanalyzers . | . . . Garrison Access . | . . . Terminal Hacks 5 | . 5 . Part Schematic 2 | . 2 . Robot Analysis 2 | . 2 . Prototype ID Bank 1 | . 1 . Fabricator Hacks . | . . . Repair Station Hacks . | . . . Recycling Unit Hacks . | . . . Scanalyzer . | . . . Garrison Access Hacks . | . . . Unauthorized Hacks 8 | . 8 . Terminals 8 | . 8 . Botnet 2 | . 2 . Operators 1 | . 1 . Skim 5 | . 5 . Fabricators . | . . . Repair Stations . | . . . Recycling Units . | . . . Scanalyzers . | . . . Garrison Access . | . . . Data Cores Recovered . | . . . Used . | . . . Hacking Detections 4 | . 4 . Full Trace Events . | . . . Feedback Events . | . . . Feedback Blocked . | . . . Robot Schematics Acquired . | . . . Robots Built . | . . . Authchips . | . . . Time . | . . . Total Robot Build Rating . | . . . Part Schematics Acquired 1 | . 1 . Parts Built . | . . . Authchips . | . . . Time . | . . . Total Part Build Rating . | . . . Part Studies Acquired . | . . . Parts Repaired . | . . . Time . | . . . Parts Recycled . | . . . Recycled Matter . | . . . Retrieved Matter . | . . . Retrieved Components . | . . . Parts Scanalyzed . | . . . Part Schematics Acquired . | . . . Parts Damaged . | . . . Bothacking | -11 -10 -10 ------------ Run | Yrd Mat Sub Used RIF Installer . | . . . Robots Hacked . | . . . Non-combat . | . . . Combat . | . . . Robot Hacks Applied . | . . . Relay Couplers Released . | . . . Fabnet Peak Effective % . | . . . Robots Rewired . | . . . Allies Hacked . | . . . Hacks Repelled . | . . . Allies | -11 -10 -10 -------- Run | Yrd Mat Sub Total Allies . | . . . Largest Group . | . . . Highest-Rated Group . | . . . Highest-Rated Ally . | . . . Total Orders . | . . . Ally Attacks . | . . . Total Damage . | . . . Kills . | . . . Allies Corrupted . | . . . Allies Melted . | . . . Intel | -11 -10 -10 ------- Run | Yrd Mat Sub Active Infowar (turns) 1625 | 5 951 669 Seismic 1625 | 5 951 669 Robot Analysis Total 2 | . 2 . Derelict Logs Recovered 1 | . . 1 Drone Launches . | . . . Drone Recoveries . | . . . Exploration | -11 -10 -10 ------------- Run | Yrd Mat Sub Turns Passed 2051 | 335 993 723 Spaces Moved 960 | 140 466 354 Core 8 | 8 . . Treads 192 | . 192 . Legs 285 | 132 153 . Wheels 475 | . 121 354 Hover . | . . . Flight . | . . . Fastest Speed 50 | 50 120 175 Average Speed 154 | 117 150 175 Slowest Speed 175 | 120 175 175 Overloaded Moves . | . . . Propulsion Burnouts . | . . . Robots Hopped . | . . . Potential Cave-ins . | . . . Cave-ins Triggered . | . . . Exploration Rate (%) 35 | 4 74 27 Regions Visited 2 Branch Regions 1 Pre-discovered Areas . | . . . Known Exits Taken 1 | . 1 . Unknown Exits Taken 1 | 1 . . Scrap Searched . | . . . Spaces Dug 9 | . 9 . Terrain Destroyed 10 | . 10 . Melee . | . . . Projectile 10 | . 10 . AOE . | . . . Terrain Rammed . | . . . Walls Destroyed . | . . . Machines Disabled . | . . . Actions | -11 -10 -10 --------- Run | Yrd Mat Sub Total 1308 | 245 664 399 Wait 172 | 53 111 8 Move 958 | 139 465 354 Hop . | . . . Pick Up 31 | 7 24 . Fast Attach 9 | 7 2 . Attach 4 | . 2 2 Detach . | . . . Swap 13 | . 8 5 Drop 8 | . 8 . Fire 113 | 39 44 30 Melee . | . . . Ram . | . . . Kick . | . . . Crush . | . . . Escape Stasis . | . . . Rewire . | . . . Trap . | . . . Miscellaneous . | . . . Route ------- -11/Scrapyard -10/Materials (discovered 6 exits: *Mat x3 / *Min x2 / *Sub) -10/Subcaves (discovered 4 exits: Mat x2 / Rec / [*Scr]) History --------- Turn | Location | Event 58 | -11/Scrapyard | Discovered new exit (range 13) 336 | -11/Scrapyard | Entered Materials 352 | -10/Materials | Build established: Mutant 532 | -10/Materials | Discovered new exit (range 15) 535 | -10/Materials | Central database locked down 760 | -10/Materials | Discovered new exit (range 4) 769 | -10/Materials | Discovered new exit (range 14) 979 | -10/Materials | Learned location of 2 exits from Subcaves 1038 | -10/Materials | Identified exit to Materials 1127 | -10/Materials | Learned location of 1 exit from Recycling 1157 | -10/Materials | Learned location of 1 exit from Storage 1176 | -10/Materials | Identified exit to Subcaves 1183 | -10/Materials | Learned location of 1 exit from Storage 1198 | -10/Materials | Learned 2 Materials zone layouts 1221 | -10/Materials | Identified exit to Mines 1253 | -10/Materials | Learned Storage emergency access door positions 1329 | -10/Materials | Entered Subcaves 1330 | -10/Subcaves | Approached by a straggling Scientist 1330 | -10/Subcaves | Identified exit to Materials 1331 | -10/Subcaves | A swath of the cavern ceiling suddenly collapsed 1331 | -10/Subcaves | Identified exit to Recycling 1919 | -10/Subcaves | Learned location of 1 exit from Materials 2005 | -10/Subcaves | Core integrity fell below 50% 2015 | -10/Subcaves | Core integrity fell below 20% 2052 | -10/Subcaves | Destroyed by QW-PGQ(R) with Subdweller Machine Gun Last Messages --------------- 01386_ Lgt. Assault Rifle fries itself beyond repair. 01387_ Flight Unit fries itself beyond repair. 01387_ S-10 Pest destroyed. 01390_ Acquired 9 matter. 01391_ Flight Unit fries itself beyond repair. 01403_ Subatomizers dissect the Mak. Leg. 01404_ Flight Unit fries itself beyond repair. 01413_ Subatomizers dissect the Mak. Leg. 01488_ K3-U0W(u) builds Twisted Machinery. 01695_ Y-45 Defender destroyed. 01702_ Acquired 42 matter. 01703_ Lgt. Treads fries itself beyond repair. 01919_ Acquired derelict log, extracted data. Data stored: Materials exits (x1). 01982_ Com. Wheel destroyed. 01998_ Seismic Detector destroyed. 02018_ Lgt. Treads destroyed. 02028_ Ion Engine destroyed. 02032_ Lgt. Treads destroyed. Map ----- +----------------------------------------------------+ | #?## ##?????# ?????????? #???# # | | ###### #???????# ?????????? ##??## # | | ###??# #????????? ?????????####????# | | #????## #??????????#?????????????????# | | ??????# #????????????????????????????##### | | ??????# ###????????????????????????????????#### | | ??????# #?????????????????????????????????????? | | ??????### #?????????????????????????????????????? | | ???????# ##????????????????????????????????????? | | ???????## #????????????????????????????????????? | | ???????# #????????????????????????????????????# | | ???????# ##????????????????????????????????????# | | ???????## #?????????????????????????????????????# | | ???????# #####?????????????????????????????????# | | ???????# ## ##???????????????????????????????## | | ???????# #???????????????????????????????# | | ???????## ## #???????????????????????????????# | | ????????# ## #???????????????????????????????# | | ???????## # ##???##?????????????????????????## | | ???????# # ####? #????#####???????????????# | | ???????# #? ???# #???????????###?# | | ???????# ###&??# #??????????## ### | | ???????## ###### ###$ ## #????????#### ### | | ????????# ###??????#### # #?????????# ### | | ????????# #???????# < R ###????#?## ### | | ???????## ##??????## @ ### ### # # | | ???????# ##????## #"# | | ???????## ##???# ## "#### | | ????????### ###?# ## # # ##"""##### | | ??????????# #### ## ##???# #?#####???? | | ??????????# #?#??# #???# ???# #???? | | ?????????## ###????# #####???## ???? ???? | | ????????## ##????## ##????????#????? #???? | | ????????# ##???# #???????????????# ???? | | ????????# #???# ##??????????????# ???? | | ????????# #???## ####???????????## ???? | | ???????## ####??# #?????????????# ??? | | ??????## ### #### ##????????????? ??? | | ?????## ## ##### #????????????? ??? | | ????## #???# #????????????? ??? | | ????# #### ##????????????? ?? | | ????# ## ## #??????????????? ?? | | ????# ## #??????????????????? | | ????## #### #??????????????????? | | ?????## ##??# # ### #?????????????????? | | ??????# ##???# #? #?????????????????? | | ??????## ##????# ###?? #????????????????? | | ???????# #????## # #????? #????????????????? | | ??????# ##????# ###??????#????????????????? | | ??????# ##?# #?????????????????????????? | +----------------------------------------------------+ Best States ------------- Heat Dissipation 25 Energy Generation 10 Energy Capacity 250 Matter Stores 195 Matter Capacity 300 Sight Range 16 Terrain Scan Density 10 Evasion (%) 55 Recoil Reduction 2 Item Schematics ----------------- Hcp. Storage Unit | -10/Materials | Hacked Robot Schematics ------------------ None Fabricated ------------ Nothing Repaired ---------- Nothing Studied --------- None Alien Tech Used ----------------- None Achievements -------------- None Challenges ------------ None Game ------ Seed DecoderEtherialCompressor Manual? 0 Play Time 00:15:24 Cumulative 344.7 hours Start 2026.07.11 @ 19:30:40 End 2026.07.11 @ 19:43:31 Sessions 1 Manual Loads 0 Difficulty Rogue Special Mode None Game No. 175 Rogue 175 Adventurer 0 Explorer 0 Win Type - Total 7 Types 4/0/1/1/0/0/0/1/0/0 Lore% 69 Gallery% 72 Achievement% 62 Wizard Run 0 Options --------- Layout 1 ASCII 0 Keyboard 0 Movement Mouse Keybinds 0 Fullscreen 1 Font 18/SmallcapsGlow Map View 54x44 Zoom Use 0% Tactical HUD 1 Map Filters NONE Filters NONE Steam 0 RUN: 15451391-b88c-497d-b75a-e2d61e88bc14